[Event "Bruges Masters 2019"]
[Site "Bruges"]
[Date "2019.08.11"]
[Round "1.1"]
[White "Ortiz Suarez, Isan Reynaldo"]
[Black "Binnendijk, Ferdinand"]
[Result "1-0"]
[ECO "A09"]
[WhiteElo "2533"]
[BlackElo "2122"]
[Annotator "RC"]
[PlyCount "57"]
[EventDate "2019.08.11"]
[EventType "swiss"]
[EventCountry "BEL"]
[SourceTitle "playchess.com"]
[Source "ChessBase"]
[SourceQuality "1"]
[TimeControl "5400+30"]

1. Nf3 {[%emt 0:00:00]} d5 {[%emt 0:00:00]} 2. c4 {[%emt 0:00:00]} c6 {[%emt 0:00:00]} 3. g3 {[%emt 0:00:11]} Nf6 {[%emt 0:00:03]} 4. Bg2 {[%emt 0:00:37]} dxc4 {[%emt 0:04:27]} 5. Qc2 {[%emt 0:00:16]} g6 {[%emt 0:02:01]} 6. Qxc4 {[%emt 0:00:43]} Bg7 {[%emt 0:00:25]} 7. O-O {[%emt 0:00:13]} O-O {[%emt 0:00:25]} 8. d3 {[%emt 0:00:15]} Nbd7 {[%emt 0:08:59]} 9. Nc3 {[%emt 0:02:46]} Ne8 {[%emt 0:04:46]} 10. Qh4 {[%emt 0:01:00]} Nd6 {[%emt 0:00:47]} 11. e4 {[%emt 0:01:05]} e5 {[%emt 0:02:27]} 12. Bg5 {[%emt 0:00:54]} f6 {[%emt 0:01:30]} 13. Be3 {[%emt 0:00:08]} b6 {[%emt 0:03:54]} 14. Rad1 {[%emt 0:04:20]} Ba6 {[%emt 0:04:22]} 15. Rfe1 {[%emt 0:02:27]} Qe7 {[%emt 0:05:33]} 16. d4 {[%emt 0:01:13]} Nc4 {[%emt 0:09:13]} 17. Bc1 {[%emt 0:00:30]} Rfd8 {[%emt 0:02:54]} 18. b3 {[%emt 0:04:13]} Qb4 {[%emt 0:03:51]} 19. Nb1 {[%emt 0:00:39]} c5 {[%emt 0:04:18]} 20. Bf1 {[%emt 0:12:47]} b5 {[%emt 0:06:11]} 21. bxc4 {[%emt 0:06:36]} Qxb1 {[%emt 0:00:14]} 22. cxb5 {[%emt 0:00:03]} Bb7 {[%emt 0:02:36]} 23. Bc4+ {[%emt 0:01:21]} Kh8 {[%emt 0:01:34]} 24. dxe5 {[%emt 0:00:29]} Qb4 {[%emt 0:00:46]} 25. Bf7 {[%emt 0:01:24]} g5 {[%emt 0:01:22]} 26. Qh3 {[%emt 0:04:04]} Nxe5 {[%emt 0:02:58]} 27. Nxe5 {[%emt 0:00:08]} fxe5 {[%emt 0:00:03]} 28. Bg6 {[%emt 0:00:06]} h6 {[%emt 0:00:07]} 29. Bxg5 {[%emt 0:00:21]} 1-0

[Event "Bruges Masters 2019"]
[Site "Bruges"]
[Date "2019.08.11"]
[Round "1.2"]
[White "Goossens, Hanne"]
[Black "Dgebuadze, Alexandre"]
[Result "1/2-1/2"]
[ECO "C06"]
[WhiteElo "2134"]
[BlackElo "2495"]
[Annotator "ChessBase"]
[PlyCount "40"]
[EventDate "2019.08.11"]
[EventType "swiss"]
[EventCountry "BEL"]
[SourceTitle "playchess.com"]
[Source "ChessBase"]
[SourceQuality "1"]
[TimeControl "5400+30"]

1. e4 {[%emt 0:00:00]} e6 {[%emt 0:02:14]} 2. d4 {[%emt 0:00:00]} d5 {[%emt 0:00:05]} 3. Nd2 {[%emt 0:00:00]} Nf6 {[%emt 0:00:13]} 4. e5 {[%emt 0:00:07]} Nfd7 {[%emt 0:00:04]} 5. Bd3 {[%emt 0:00:07]} c5 {[%emt 0:00:05]} 6. c3 {[%emt 0:00:06]} Nc6 {[%emt 0:00:04]} 7. Ne2 {[%emt 0:01:14]} cxd4 {[%emt 0:01:21]} 8. cxd4 {[%emt 0:00:08]} f6 {[%emt 0:00:06]} 9. Nf4 {[%emt 0:00:56]} Qe7 {[%emt 0:08:18]} 10. Nf3 {[%emt 0:03:44]} fxe5 {[%emt 0:04:03]} 11. dxe5 {[%emt 0:01:19]} Nc5 {[%emt 0:11:57]} 12. Bb1 {[%emt 0:05:57]} g6 {[%emt 0:03:33]} 13. O-O {[%emt 0:09:42]} Bg7 {[%emt 0:03:24]} 14. Re1 {[%emt 0:08:19]} O-O {[%emt 0:00:55]} 15. Bxg6 {[%emt 0:13:14]} hxg6 {[%emt 0:11:12]} 16. Nxg6 {[%emt 0:00:08]} Qf7 {[%emt 0:00:20]} 17. Nxf8 {[%emt 0:01:10]} Qxf8 {[%emt 0:00:15]} 18. Ng5 {[%emt 0:04:23]} Qf5 {[%emt 0:06:29]} 19. Qh5 {[%emt 0:17:25]} Nd3 {[%emt 0:05:53]} 20. f4 {[%emt 0:11:38]} Ne7 {[%emt 0:17:41]} 1/2-1/2

[Event "Bruges Masters 2019"]
[Site "Bruges"]
[Date "2019.08.11"]
[Round "1.3"]
[White "Mirzoev, Azer"]
[Black "Du, Chunhui"]
[Result "0-1"]
[ECO "E21"]
[WhiteElo "2474"]
[BlackElo "2137"]
[Annotator "ChessBase"]
[PlyCount "82"]
[EventDate "2019.08.11"]
[EventType "swiss"]
[EventCountry "BEL"]
[SourceTitle "playchess.com"]
[Source "ChessBase"]
[SourceQuality "1"]
[TimeControl "5400+30"]

1. d4 {[%emt 0:00:00]} Nf6 {[%emt 0:00:00]} 2. Nf3 {[%emt 0:00:00]} e6 {[%emt 0:00:00]} 3. c4 {[%emt 0:00:00]} b6 {[%emt 0:01:33]} 4. Nc3 {[%emt 0:00:00]} Bb4 {[%emt 0:00:16]} 5. Qc2 {[%emt 0:00:00]} Bb7 {[%emt 0:00:37]} 6. a3 {[%emt 0:00:00]} Bxc3+ {[%emt 0:00:32]} 7. Qxc3 {[%emt 0:00:00]} a5 {[%emt 0:00:18]} 8. g3 {[%emt 0:03:08]} O-O {[%emt 0:01:05]} 9. Bg2 {[%emt 0:00:05]} Qe7 {[%emt 0:00:55]} 10. O-O {[%emt 0:00:13]} a4 {[%emt 0:02:31]} 11. Rd1 {[%emt 0:00:17]} d6 {[%emt 0:01:00]} 12. Be3 {[%emt 0:05:14]} Nbd7 {[%emt 0:03:08]} 13. Rac1 {[%emt 0:00:21]} Be4 {[%emt 0:09:06]} 14. Bf1 {[%emt 0:00:50]} h6 {[%emt 0:06:34]} 15. Ne1 {[%emt 0:01:45]} e5 {[%emt 0:07:46]} 16. f3 {[%emt 0:00:08]} Bb7 {[%emt 0:00:58]} 17. Bf2 {[%emt 0:01:16]} e4 {[%emt 0:03:50]} 18. Ng2 {[%emt 0:01:23]} Rfe8 {[%emt 0:01:43]} 19. Nh4 {[%emt 0:02:26]} g6 {[%emt 0:03:45]} 20. Ng2 {[%emt 0:03:22]} c5 {[%emt 0:07:52]} 21. f4 {[%emt 0:10:13]} e3 {[%emt 0:15:47]} 22. Qxe3 {[%emt 0:00:38]} Ne4 {[%emt 0:00:01]} 23. Be1 {[%emt 0:02:43]} Ndf6 {[%emt 0:00:03]} 24. Qd3 {[%emt 0:02:28]} Bc8 {[%emt 0:00:49]} 25. Ne3 {[%emt 0:05:56]} Rb8 {[%emt 0:01:56]} 26. Bg2 {[%emt 0:01:30]} Ba6 {[%emt 0:01:57]} 27. Bf3 {[%emt 0:14:11]} d5 {[%emt 0:08:04]} 28. dxc5 {[%emt 0:03:36]} dxc4 {[%emt 0:10:11]} 29. Nxc4 {[%emt 0:00:29]} Rbd8 {[%emt 0:00:57]} 30. Qe3 {[%emt 0:04:20]} Rxd1 {[%emt 0:00:13]} 31. Rxd1 {[%emt 0:00:05]} Bxc4 {[%emt 0:00:03]} 32. cxb6 {[%emt 0:00:05]} Qb7 {[%emt 0:05:45]} 33. Qd4 {[%emt 0:02:51]} Bd5 {[%emt 0:01:11]} 34. Rc1 {[%emt 0:02:05]} Re6 {[%emt 0:00:27]} 35. Ba5 {[%emt 0:01:50]} Qa6 {[%emt 0:00:30]} 36. Qb4 {[%emt 0:07:14]} Nd6 {[%emt 0:02:09]} 37. Qxa4 {[%emt 0:07:07]} Rxe2 {[%emt 0:02:31]} 38. Bxd5 {[%emt 0:00:33]} Nxd5 {[%emt 0:00:08]} 39. Qd1 {[%emt 0:00:21]} Ne3 {[%emt 0:01:13]} 40. Qxd6 {[%emt 0:00:34]} Rg2+ {[%emt 0:00:46]} 41. Kh1 {[%emt 0:00:03]} Rc2 {[%emt 0:00:14]} 0-1

[Event "Bruges Masters 2019"]
[Site "Bruges"]
[Date "2019.08.11"]
[Round "1.4"]
[White "Keuning, Selwin"]
[Black "Leenhouts, Koen"]
[Result "1/2-1/2"]
[ECO "B22"]
[WhiteElo "2078"]
[BlackElo "2426"]
[Annotator "NA"]
[PlyCount "57"]
[EventDate "2019.08.11"]
[EventType "swiss"]
[EventCountry "BEL"]
[SourceTitle "playchess.com"]
[Source "ChessBase"]
[SourceQuality "1"]
[TimeControl "5400+30"]

1. e4 {[%emt 0:00:00]} c5 {[%emt 0:00:00]} 2. c3 {[%emt 0:00:00]} Nf6 {[%emt 0:00:00]} 3. e5 {[%emt 0:00:00]} Nd5 {[%emt 0:00:00]} 4. Nf3 {[%emt 0:00:00]} e6 {[%emt 0:00:00]} 5. Bc4 {[%emt 0:00:10]} d6 {[%emt 0:00:00]} 6. O-O {[%emt 0:00:46]} Be7 {[%emt 0:00:49]} 7. d4 {[%emt 0:03:44]} cxd4 {[%emt 0:00:08]} 8. exd6 {[%emt 0:00:51]} Qxd6 {[%emt 0:01:12]} 9. Qxd4 {[%emt 0:04:16]} O-O {[%emt 0:01:40]} 10. Bxd5 {[%emt 0:01:44]} Qxd5 {[%emt 0:01:52]} 11. Qxd5 {[%emt 0:00:08]} exd5 {[%emt 0:00:06]} 12. Nbd2 {[%emt 0:02:48]} a5 {[%emt 0:06:51]} 13. Nb3 {[%emt 0:05:54]} Nc6 {[%emt 0:05:42]} 14. Nbd4 {[%emt 0:07:58]} Bg4 {[%emt 0:01:07]} 15. Nxc6 {[%emt 0:02:40]} bxc6 {[%emt 0:00:22]} 16. Ne5 {[%emt 0:00:12]} Bf5 {[%emt 0:04:17]} 17. Nxc6 {[%emt 0:01:11]} Bf6 {[%emt 0:00:10]} 18. Be3 {[%emt 0:02:51]} Rfc8 {[%emt 0:01:09]} 19. Nd4 {[%emt 0:00:36]} Bg6 {[%emt 0:02:15]} 20. Rad1 {[%emt 0:04:11]} Rab8 {[%emt 0:00:54]} 21. Rd2 {[%emt 0:00:49]} a4 {[%emt 0:00:17]} 22. Ne2 {[%emt 0:08:44]} Rb5 {[%emt 0:06:38]} 23. Nf4 {[%emt 0:06:53]} Rcb8 {[%emt 0:00:32]} 24. Nxd5 {[%emt 0:03:16]} Rxb2 {[%emt 0:00:16]} 25. Rxb2 {[%emt 0:03:46]} Rxb2 {[%emt 0:00:04]} 26. Re1 {[%emt 0:05:45]} h5 {[%emt 0:02:55]} 27. Nxf6+ {[%emt 0:04:59]} gxf6 {[%emt 0:00:03]} 28. a3 {[%emt 0:00:05]} Rb3 {[%emt 0:00:26]} 29. Bc5 {[%emt 0:00:05]} 1/2-1/2

[Event "Bruges Masters 2019"]
[Site "Bruges"]
[Date "2019.08.11"]
[Round "1.5"]
[White "Legky, Nikolay A"]
[Black "Verduyn, Frederic"]
[Result "1-0"]
[ECO "A46"]
[WhiteElo "2397"]
[BlackElo "2101"]
[Annotator "NA"]
[PlyCount "141"]
[EventDate "2019.08.11"]
[EventType "swiss"]
[EventCountry "BEL"]
[SourceTitle "playchess.com"]
[Source "ChessBase"]
[SourceQuality "1"]
[TimeControl "5400+30"]

1. d4 {[%emt 0:00:00]} d6 {[%emt 0:05:46]} 2. Nf3 {[%emt 0:01:34]} Bg4 {[%emt 0:00:27]} 3. Nbd2 {[%emt 0:03:04]} Nf6 {[%emt 0:01:47]} 4. h3 {[%emt 0:00:52]} Bh5 {[%emt 0:00:22]} 5. g4 {[%emt 0:00:38]} Bg6 {[%emt 0:00:09]} 6. Bg2 {[%emt 0:00:11]} c6 {[%emt 0:02:44]} 7. Nh4 {[%emt 0:00:45]} e5 {[%emt 0:02:51]} 8. dxe5 {[%emt 0:09:45]} dxe5 {[%emt 0:00:16]} 9. Nc4 {[%emt 0:00:04]} Qxd1+ {[%emt 0:08:55]} 10. Kxd1 {[%emt 0:00:07]} Nbd7 {[%emt 0:01:04]} 11. Nxg6 {[%emt 0:00:10]} hxg6 {[%emt 0:00:21]} 12. e3 {[%emt 0:00:07]} O-O-O {[%emt 0:04:28]} 13. Ke2 {[%emt 0:00:05]} Nd5 {[%emt 0:04:25]} 14. Bd2 {[%emt 0:09:50]} N5b6 {[%emt 0:02:29]} 15. Nxb6+ {[%emt 0:02:21]} Nxb6 {[%emt 0:01:50]} 16. Bc3 {[%emt 0:00:05]} f6 {[%emt 0:01:59]} 17. b3 {[%emt 0:03:22]} Nd5 {[%emt 0:02:22]} 18. Bb2 {[%emt 0:00:05]} Bb4 {[%emt 0:02:07]} 19. Rad1 {[%emt 0:27:02]} Nc3+ {[%emt 0:03:51]} 20. Bxc3 {[%emt 0:00:05]} Bxc3 {[%emt 0:00:05]} 21. Be4 {[%emt 0:01:04]} Rxd1 {[%emt 0:01:53]} 22. Rxd1 {[%emt 0:00:11]} Rd8 {[%emt 0:09:19]} 23. Rxd8+ {[%emt 0:00:52]} Kxd8 {[%emt 0:00:12]} 24. Bxg6 {[%emt 0:00:02]} Ke7 {[%emt 0:01:15]} 25. h4 {[%emt 0:04:10]} Bb4 {[%emt 0:01:51]} 26. h5 {[%emt 0:00:05]} Bc3 {[%emt 0:01:29]} 27. Bf5 {[%emt 0:01:47]} Kd6 {[%emt 0:00:53]} 28. f3 {[%emt 0:11:43]} Bb2 {[%emt 0:02:02]} 29. Kd3 {[%emt 0:00:28]} Bc1 {[%emt 0:00:54]} 30. Ke4 {[%emt 0:01:37]} Bd2 {[%emt 0:02:32]} 31. Bc8 {[%emt 0:14:07]} Kc7 {[%emt 0:01:42]} 32. Be6 {[%emt 0:00:04]} Kd6 {[%emt 0:00:33]} 33. Bc4 {[%emt 0:00:03]} Bc1 {[%emt 0:01:42]} 34. f4 {[%emt 0:00:05]} exf4 {[%emt 0:05:20]} 35. exf4 {[%emt 0:00:03]} Ke7 {[%emt 0:03:23]} 36. Kf5 {[%emt 0:00:04]} Bd2 {[%emt 0:01:30]} 37. Be6 {[%emt 0:05:30]} Be3 {[%emt 0:05:55]} 38. Bc8 {[%emt 0:00:05]} b6 {[%emt 0:00:35]} 39. Bb7 {[%emt 0:00:02]} c5 {[%emt 0:00:19]} 40. Ba6 {[%emt 0:00:03]} Bd2 {[%emt 0:01:26]} 41. Bc4 {[%emt 0:02:24]} Be3 {[%emt 0:01:14]} 42. Bd5 {[%emt 0:01:27]} Bd2 {[%emt 0:00:26]} 43. Kg6 {[%emt 0:00:21]} Kf8 {[%emt 0:00:33]} 44. g5 {[%emt 0:00:11]} fxg5 {[%emt 0:02:13]} 45. f5 {[%emt 0:00:01]} Bc3 {[%emt 0:04:17]} 46. f6 {[%emt 0:01:49]} g4 {[%emt 0:04:09]} 47. fxg7+ {[%emt 0:01:12]} Bxg7 {[%emt 0:00:08]} 48. Kf5 {[%emt 0:00:02]} Ke7 {[%emt 0:01:33]} 49. Kg6 {[%emt 0:00:03]} Kf8 {[%emt 0:00:32]} 50. Kg5 {[%emt 0:00:35]} Ke7 {[%emt 0:00:27]} 51. h6 {[%emt 0:00:10]} Bh8 {[%emt 0:01:37]} 52. Kxg4 {[%emt 0:00:04]} Kf6 {[%emt 0:00:52]} 53. Be4 {[%emt 0:00:16]} Ke5 {[%emt 0:00:28]} 54. Bd3 {[%emt 0:00:05]} Kf6 {[%emt 0:01:07]} 55. Kf4 {[%emt 0:00:04]} Kf7 {[%emt 0:00:48]} 56. Bf5 {[%emt 0:00:11]} Bf6 {[%emt 0:01:37]} 57. Ke4 {[%emt 0:00:03]} Bg5 {[%emt 0:01:49]} 58. h7 {[%emt 0:00:02]} Kg7 {[%emt 0:00:54]} 59. Kd5 {[%emt 0:00:05]} Be3 {[%emt 0:00:46]} 60. c4 {[%emt 0:02:59]} Bd2 {[%emt 0:00:23]} 61. Kc6 {[%emt 0:00:05]} Bb4 {[%emt 0:00:49]} 62. Kb7 {[%emt 0:00:05]} a5 {[%emt 0:00:26]} 63. Kxb6 {[%emt 0:00:05]} Kh8 {[%emt 0:00:05]} 64. Kb5 {[%emt 0:01:33]} Kg7 {[%emt 0:00:12]} 65. Ka4 {[%emt 0:00:04]} Kh8 {[%emt 0:00:57]} 66. a3 {[%emt 0:00:17]} Bd2 {[%emt 0:00:18]} 67. Kb5 {[%emt 0:00:03]} Bc1 {[%emt 0:00:54]} 68. Kxc5 {[%emt 0:00:15]} Bxa3+ {[%emt 0:00:05]} 69. Kb6 {[%emt 0:00:10]} Bb4 {[%emt 0:01:00]} 70. c5 {[%emt 0:00:06]} Bc3 {[%emt 0:00:15]} 71. c6 {[%emt 0:00:04]} 1-0

[Event "Bruges Masters 2019"]
[Site "Bruges"]
[Date "2019.08.11"]
[Round "1.6"]
[White "Li, Zhenyu"]
[Black "Quesada Vera, Liordis"]
[Result "1/2-1/2"]
[ECO "A54"]
[WhiteElo "2129"]
[BlackElo "2386"]
[Annotator "NA"]
[PlyCount "104"]
[EventDate "2019.08.11"]
[EventType "swiss"]
[EventCountry "BEL"]
[SourceTitle "playchess.com"]
[Source "ChessBase"]
[SourceQuality "1"]
[TimeControl "5400+30"]

1. d4 {[%emt 0:00:00]} Nf6 {[%emt 0:06:28]} 2. Nf3 {[%emt 0:00:17]} d6 {[%emt 0:00:28]} 3. c4 {[%emt 0:00:25]} Nbd7 {[%emt 0:00:10]} 4. Nc3 {[%emt 0:00:31]} e5 {[%emt 0:00:08]} 5. g3 {[%emt 0:03:50]} Be7 {[%emt 0:01:24]} 6. Bg2 {[%emt 0:00:04]} O-O {[%emt 0:00:19]} 7. O-O {[%emt 0:00:03]} c6 {[%emt 0:00:27]} 8. Qc2 {[%emt 0:03:12]} Re8 {[%emt 0:07:39]} 9. b3 {[%emt 0:03:52]} Bf8 {[%emt 0:06:23]} 10. Bb2 {[%emt 0:04:06]} a6 {[%emt 0:05:13]} 11. Rad1 {[%emt 0:14:04]} Qc7 {[%emt 0:06:58]} 12. Ne1 {[%emt 0:06:51]} Nb6 {[%emt 0:17:59]} 13. e4 {[%emt 0:04:31]} h6 {[%emt 0:15:03]} 14. Ne2 {[%emt 0:05:29]} Bg4 {[%emt 0:08:07]} 15. f3 {[%emt 0:01:59]} Bh5 {[%emt 0:00:25]} 16. c5 {[%emt 0:15:48]} Nbd7 {[%emt 0:01:42]} 17. cxd6 {[%emt 0:01:27]} Bxd6 {[%emt 0:01:13]} 18. Nd3 {[%emt 0:01:06]} exd4 {[%emt 0:06:17]} 19. Nef4 {[%emt 0:05:10]} Qb6 {[%emt 0:04:23]} 20. Nxh5 {[%emt 0:00:31]} Nxh5 {[%emt 0:00:08]} 21. f4 {[%emt 0:00:06]} Bf8 {[%emt 0:03:04]} 22. e5 {[%emt 0:01:34]} g6 {[%emt 0:01:03]} 23. Qc4 {[%emt 0:03:54]} Qb5 {[%emt 0:02:19]} 24. Qxd4 {[%emt 0:00:48]} Rad8 {[%emt 0:03:00]} 25. Qc3 {[%emt 0:05:08]} Ng7 {[%emt 0:00:55]} 26. Kh1 {[%emt 0:00:58]} Nc5 {[%emt 0:00:24]} 27. Nf2 {[%emt 0:01:55]} h5 {[%emt 0:00:15]} 28. Ne4 {[%emt 0:03:36]} Nxe4 {[%emt 0:00:19]} 29. Bxe4 {[%emt 0:00:02]} Qb4 {[%emt 0:01:39]} 30. Qf3 {[%emt 0:00:26]} Qa5 {[%emt 0:00:12]} 31. Bb1 {[%emt 0:03:40]} Rxd1 {[%emt 0:00:15]} 32. Rxd1 {[%emt 0:00:10]} Rd8 {[%emt 0:00:10]} 33. Rf1 {[%emt 0:02:35]} Qd5 {[%emt 0:00:21]} 34. Be4 {[%emt 0:00:53]} Qe6 {[%emt 0:00:01]} 35. Rd1 {[%emt 0:02:26]} Be7 {[%emt 0:01:07]} 36. Rxd8+ {[%emt 0:01:56]} Bxd8 {[%emt 0:00:01]} 37. Qf2 {[%emt 0:00:21]} Qd7 {[%emt 0:01:35]} 38. Qd4 {[%emt 0:00:27]} Qxd4 39. Bxd4 {[%emt 0:00:01]} Be7 {[%emt 0:01:01]} 40. Kg2 {[%emt 0:00:15]} Nf5 {[%emt 0:00:09]} 41. Bf2 {[%emt 0:00:38]} Kf8 {[%emt 0:00:13]} 42. h3 {[%emt 0:00:16]} Ba3 {[%emt 0:00:44]} 43. g4 {[%emt 0:00:13]} hxg4 {[%emt 0:00:46]} 44. hxg4 {[%emt 0:00:01]} Ne7 {[%emt 0:00:29]} 45. Kf3 {[%emt 0:00:37]} Bb2 {[%emt 0:00:12]} 46. Bc5 {[%emt 0:00:59]} Ke8 {[%emt 0:00:23]} 47. e6 {[%emt 0:03:53]} fxe6 {[%emt 0:00:32]} 48. Bxe7 {[%emt 0:00:02]} Kxe7 {[%emt 0:00:11]} 49. Bxg6 {[%emt 0:00:01]} e5 {[%emt 0:00:49]} 50. fxe5 {[%emt 0:02:01]} Bxe5 {[%emt 0:00:02]} 51. Ke4 {[%emt 0:00:04]} Bb2 {[%emt 0:00:13]} 52. Kf5 {[%emt 0:00:37]} b5 {[%emt 0:00:28]} 1/2-1/2

[Event "Bruges Masters 2019"]
[Site "Bruges"]
[Date "2019.08.11"]
[Round "1.7"]
[White "De Jong, Migchiel"]
[Black "Olander, Aleksi"]
[Result "1/2-1/2"]
[ECO "B23"]
[WhiteElo "2345"]
[BlackElo "2066"]
[Annotator "NA"]
[PlyCount "145"]
[EventDate "2019.08.11"]
[EventType "swiss"]
[EventCountry "BEL"]
[SourceTitle "playchess.com"]
[Source "ChessBase"]
[SourceQuality "1"]
[TimeControl "5400+30"]

1. e4 {[%emt 0:00:00]} c5 {[%emt 0:00:00]} 2. Nf3 {[%emt 0:00:00]} e6 {[%emt 0:00:00]} 3. g3 {[%emt 0:00:55]} d5 {[%emt 0:01:29]} 4. exd5 {[%emt 0:00:13]} exd5 {[%emt 0:00:03]} 5. d4 {[%emt 0:00:14]} Nf6 {[%emt 0:01:46]} 6. Bg2 {[%emt 0:00:08]} Be7 {[%emt 0:02:00]} 7. O-O {[%emt 0:00:24]} O-O {[%emt 0:00:09]} 8. Nc3 {[%emt 0:01:55]} h6 {[%emt 0:02:38]} 9. Be3 {[%emt 0:00:30]} b6 {[%emt 0:11:26]} 10. Ne5 {[%emt 0:04:29]} Bb7 {[%emt 0:00:53]} 11. f4 {[%emt 0:02:21]} Na6 {[%emt 0:13:34]} 12. Qe2 {[%emt 0:07:14]} Nc7 {[%emt 0:02:33]} 13. Rfd1 {[%emt 0:00:54]} Re8 {[%emt 0:07:10]} 14. dxc5 {[%emt 0:11:55]} Bxc5 {[%emt 0:03:12]} 15. Bxc5 {[%emt 0:05:29]} bxc5 {[%emt 0:01:46]} 16. Qf2 {[%emt 0:00:12]} Qe7 {[%emt 0:02:42]} 17. Re1 {[%emt 0:03:33]} Qd6 {[%emt 0:01:36]} 18. Rad1 {[%emt 0:01:40]} Ne6 {[%emt 0:08:12]} 19. Na4 {[%emt 0:01:48]} Rab8 {[%emt 0:10:49]} 20. f5 {[%emt 0:03:34]} Nd4 {[%emt 0:03:14]} 21. Nxc5 {[%emt 0:01:24]} Rxe5 {[%emt 0:09:37]} 22. Rxe5 {[%emt 0:06:32]} Qxe5 {[%emt 0:00:11]} 23. Rxd4 {[%emt 0:01:18]} Bc8 {[%emt 0:00:20]} 24. Nd3 {[%emt 0:06:26]} Qxf5 {[%emt 0:00:12]} 25. Rf4 {[%emt 0:10:01]} Qd7 {[%emt 0:01:30]} 26. Qc5 {[%emt 0:04:28]} Ba6 {[%emt 0:06:05]} 27. Nb4 {[%emt 0:03:00]} Bc4 {[%emt 0:00:14]} 28. a3 {[%emt 0:06:43]} Rb5 {[%emt 0:02:44]} 29. Qd4 {[%emt 0:00:58]} a5 {[%emt 0:00:48]} 30. Nd3 {[%emt 0:03:11]} Bxd3 {[%emt 0:00:55]} 31. cxd3 {[%emt 0:00:08]} Qc7 {[%emt 0:00:43]} 32. Rf2 {[%emt 0:01:48]} Qc5 {[%emt 0:01:22]} 33. Qxc5 {[%emt 0:00:45]} Rxc5 {[%emt 0:00:04]} 34. Bf3 {[%emt 0:01:10]} Rc1+ {[%emt 0:00:58]} 35. Kg2 {[%emt 0:01:03]} Kf8 {[%emt 0:00:31]} 36. Re2 {[%emt 0:00:26]} g5 {[%emt 0:02:14]} 37. Kf2 {[%emt 0:01:08]} Rd1 {[%emt 0:02:47]} 38. Re8+ {[%emt 0:00:25]} Nxe8 {[%emt 0:00:37]} 39. Bxd1 {[%emt 0:00:03]} Ke7 {[%emt 0:00:07]} 40. Ke3 {[%emt 0:00:33]} Nc7 {[%emt 0:00:22]} 41. Bg4 {[%emt 0:02:07]} Kd6 {[%emt 0:00:23]} 42. Bc8 {[%emt 0:01:16]} Ke5 {[%emt 0:01:14]} 43. d4+ {[%emt 0:00:45]} Kd6 {[%emt 0:00:16]} 44. Kd3 {[%emt 0:00:50]} Nb5 {[%emt 0:00:27]} 45. Bg4 {[%emt 0:01:07]} Nc7 {[%emt 0:01:37]} 46. Be2 {[%emt 0:00:51]} f5 {[%emt 0:00:31]} 47. Ke3 {[%emt 0:00:34]} Ne6 {[%emt 0:00:07]} 48. Kd3 {[%emt 0:00:56]} Nf8 {[%emt 0:01:06]} 49. Kc3 {[%emt 0:00:53]} f4 {[%emt 0:00:18]} 50. gxf4 {[%emt 0:00:15]} gxf4 {[%emt 0:00:04]} 51. Bg4 {[%emt 0:00:34]} Ng6 {[%emt 0:00:25]} 52. b4 {[%emt 0:01:17]} axb4+ {[%emt 0:00:08]} 53. Kxb4 {[%emt 0:00:06]} Kc6 {[%emt 0:00:28]} 54. Kc3 {[%emt 0:00:42]} Nh4 {[%emt 0:00:08]} 55. a4 {[%emt 0:00:52]} Kb6 {[%emt 0:00:19]} 56. Kb4 {[%emt 0:00:28]} f3 {[%emt 0:00:53]} 57. a5+ {[%emt 0:00:35]} Ka6 {[%emt 0:00:07]} 58. Bd7 {[%emt 0:03:44]} f2 {[%emt 0:00:48]} 59. Bb5+ {[%emt 0:00:05]} Ka7 {[%emt 0:00:13]} 60. Kc5 {[%emt 0:00:28]} Nf3 {[%emt 0:00:08]} 61. h3 {[%emt 0:01:12]} Nd2 {[%emt 0:00:42]} 62. Kxd5 {[%emt 0:00:24]} f1=Q {[%emt 0:00:08]} 63. Bxf1 {[%emt 0:00:07]} Nxf1 {[%emt 0:00:04]} 64. Ke6 {[%emt 0:00:29]} Nd2 {[%emt 0:01:57]} 65. d5 {[%emt 0:00:56]} Nc4 {[%emt 0:00:06]} 66. h4 {[%emt 0:00:22]} Nxa5 {[%emt 0:00:13]} 67. Kf7 {[%emt 0:00:39]} Nc4 {[%emt 0:01:42]} 68. Kg6 {[%emt 0:00:20]} Ne3 {[%emt 0:00:55]} 69. d6 {[%emt 0:01:27]} Kb7 {[%emt 0:00:16]} 70. h5 {[%emt 0:01:06]} Kc6 {[%emt 0:01:06]} 71. Kxh6 {[%emt 0:00:07]} Ng4+ {[%emt 0:00:37]} 72. Kg5 {[%emt 0:00:16]} Kxd6 {[%emt 0:00:15]} 73. Kxg4 {[%emt 0:00:07]} 1/2-1/2